bitfinex/quotes_SOLUSD_20241121
["timestamp","ask_amount","ask_price","bid_price","bid_amount"]
[1732198975687,26.78050771,245.91,245.82,2.4408]
[1732198975890,22.71390771,245.93,245.83,22.71390771]
[1732198976394,22.71390771,245.89,245.82,8.5428]
[1732198976767,22.71390771,245.91,245.82,31.25670771]
[1732198977779,22.71390771,245.91,245.82,8.5428]
[1732198977987,22.71390771,245.91,245.82,31.25670771]
[1732198978309,22.71390771,245.97,245.88,22.71390771]
[1732198978488,22.71390771,245.97,245.86,42.71390771]
[1732198978669,22.71390771,245.95,245.86,42.71390771]
[1732198979188,22.71390771,245.95,245.87,8.541]
[1732198979568,47.841684,246.01,245.88,22.71390771]
[1732198979873,22.71390771,246.02,245.94,22.71390771]
[1732198980090,22.71390771,246.04,245.94,22.71390771]
[1732198980894,22.71390771,246.0,245.93,20.0]
[1732198981201,22.71390771,245.94,245.88,20.0]
[1732198981429,22.71390771,245.94,245.89,2.4401]
[1732198981896,22.71390771,245.94,245.89,8.5403]
[1732198982270,22.71390771,245.96,245.89,8.5403]
[1732198982697,22.71390771,245.98,245.89,8.5403]
[1732198982872,23.776884,245.97,245.89,8.5403]
[1732198983198,22.71390771,246.0,245.9,22.71390771]
[1732198983497,22.71390771,246.0,245.91,20.0]
[1732198983676,22.71390771,246.0,245.92,22.71390771]
[1732198983876,22.71390771,246.02,245.93,20.0]
[1732198985000,22.71390771,246.08,245.99,20.0]
[1732198985296,22.71390771,246.1,246.01,20.0]
[1732198986268,22.71390771,246.1,246.02,32.67230771]
[1732198987695,22.71390771,246.06,246.02,7.1132]
[1732198987905,22.71390771,246.06,246.02,9.9584]
[1732198988103,22.71390771,246.08,246.02,9.9584]
[1732198988309,22.71390771,246.08,246.02,7.1132]
[1732198988597,22.71390771,246.1,246.02,7.1132]
[1732198988800,22.71390771,246.1,246.03,20.0]
[1732198989182,22.71390771,246.12,246.03,20.0]
[1732198989612,22.71390771,246.12,246.04,22.71390771]
[1732198989786,22.71390771,246.14,246.04,22.71390771]
[1732198990177,22.71390771,246.14,246.05,20.0]
[1732198990499,22.71390771,246.14,246.07,20.0]
[1732198990681,22.71390771,246.16,246.07,20.0]
[1732198990881,22.71390771,246.2,246.1,22.71390771]
[1732198992100,22.71390771,246.16,246.07,20.0]
[1732198992803,22.71390771,246.16,246.08,9.9561]
[1732198992986,22.71390771,246.16,246.09,20.0]
[1732198993902,22.71390771,246.18,246.09,20.0]
[1732198994278,22.71390771,246.18,246.08,32.67000771]
[1732198994279,22.71390771,246.16,246.08,9.9561]
[1732198995001,22.71390771,246.14,246.08,9.9561]
[1732198995708,22.71390771,246.12,246.08,7.1115]
[1732198996179,22.71390771,246.1,246.03,7.1127]
[1732198996380,22.71390771,246.07,246.03,7.1127]
[1732198998310,22.71390771,246.11,246.03,7.1127]
[1732198998510,22.71390771,246.13,246.04,20.0]
[1732198998682,22.71390771,246.17,246.07,22.71390771]
[1732198998879,22.71390771,246.17,246.08,9.9561]
[1732198999083,22.71390771,246.19,246.09,42.71390771]
[1732199000904,22.71390771,246.17,246.1,9.9552]
[1732199001401,4.0616,246.21,246.1,9.9552]
[1732199001402,22.71390771,246.13,246.1,7.1109]
[1732199001810,22.71390771,246.13,246.1,9.9552]
[1732199002015,22.71390771,246.13,246.1,7.1109]
[1732199002299,22.71390771,246.13,246.08,2.8445]
[1732199002503,22.71390771,246.09,246.05,7.1121]
[1732199002701,22.71390771,246.07,246.05,7.1121]
[1732199002908,22.71390771,246.09,245.99,28.80220771]
[1732199003096,22.71390771,246.09,246.0,9.9593]
[1732199004308,22.71390771,246.07,246.01,20.0]
[1732199004987,22.71390771,246.05,246.02,9.9584]
[1732199005503,22.71390771,246.05,246.02,7.1132]
[1732199005694,22.71390771,246.03,246.02,7.1132]
[1732199006204,22.71390771,246.07,246.02,9.9584]
[1732199007205,22.71390771,246.07,246.02,7.1132]
[1732199008919,22.71390771,246.09,246.02,7.1132]
[1732199009713,22.71390771,246.07,246.02,7.1132]
[1732199011110,22.71390771,246.09,246.02,7.1132]
[1732199012307,22.71390771,246.07,246.02,7.1132]
[1732199012709,22.71390771,246.05,246.02,7.1132]
[1732199014405,22.71390771,246.05,246.0,2.8455]
[1732199014803,22.71390771,246.03,246.0,2.8455]
[1732199015313,22.71390771,246.03,245.99,6.0883]
[1732199015621,22.71390771,246.03,245.99,8.9339]
[1732199016213,22.71390771,246.03,245.99,16.048]
[1732199016921,22.71390771,246.01,245.94,27.1154]
[1732199017707,22.71390771,246.01,245.95,2.846]
[1732199018002,22.71390771,246.01,245.95,9.9612]
[1732199018197,10.1583,246.11,245.95,9.9612]
[1732199018198,22.71390771,245.99,245.95,9.9612]
[1732199018528,22.71390771,245.99,245.93,9.06]
[1732199018832,22.71390771,245.94,245.88,16.242686]
[1732199019116,22.71390771,245.94,245.74,0.5]
[1732199019117,23.776884,245.99,245.8,6.1794]
[1732199019318,23.776884,245.99,245.8,16.1466]
[1732199019816,22.71390771,245.9,245.8,16.1466]
[1732199020119,22.71390771,245.92,245.83,22.71390771]
[1732199020302,22.71390771,245.94,245.85,22.71390771]
[1732199020629,22.71390771,245.96,245.87,22.71390771]
[1732199020925,16.4123,246.05,245.82,24.2046]
[1732199020926,22.71390771,246.0,245.89,22.71390771]
[1732199021428,22.71390771,246.0,245.91,42.71390771]
[1732199022199,22.71390771,246.0,245.92,9.9625]
[1732199022408,22.71390771,245.96,245.92,9.9625]
[1732199022825,22.71390771,245.96,245.92,7.1161]
[1732199023004,22.71390771,245.94,245.92,7.1161]
[1732199023211,22.71390771,245.94,245.9,6.4561]
[1732199024124,22.71390771,245.92,245.81,29.22380771]
[1732199024327,22.71390771,245.9,245.82,9.9663]
[1732199024502,22.71390771,245.9,245.83,20.0]
[1732199025226,22.71390771,245.92,245.83,20.0]
[1732199025408,22.71390771,245.92,245.82,9.9663]
[1732199025612,22.71390771,245.9,245.82,9.9663]
[1732199027027,22.71390771,245.9,245.84,9.9657]
[1732199029005,22.71390771,245.88,245.84,7.1184]
[1732199030870,26.78060771,245.9,245.84,7.1184]
[1732199031030,22.71390771,245.92,245.84,29.83230771]
[1732199031204,22.71390771,245.94,245.84,29.83230771]
[1732199031403,22.71390771,245.94,245.86,22.71390771]
[1732199031628,22.71390771,245.94,245.85,20.0]
[1732199032227,22.71390771,245.94,245.86,9.9649]
[1732199032426,22.71390771,245.92,245.86,7.1178]
[1732199033029,22.71390771,245.9,245.86,7.1178]
[1732199033332,22.71390771,245.93,245.86,9.9649]
[1732199034304,26.78010771,245.93,245.86,7.1178]
[1732199034928,22.71390771,245.96,245.87,42.71390771]
[1732199035226,22.71390771,245.98,245.87,42.71390771]
[1732199035615,22.71390771,246.0,245.9,22.71390771]
[1732199035819,22.71390771,246.0,245.92,22.71390771]
[1732199036320,22.71390771,245.98,245.91,29.9629]
[1732199037020,22.71390771,245.98,245.91,9.9629]
[1732199037532,26.77920771,245.98,245.91,7.1164]
[1732199038026,22.71390771,245.96,245.91,7.1164]
[1732199038620,22.71390771,245.96,245.87,29.9645]
[1732199041223,26.77960771,245.96,245.87,29.9645]
[1732199041533,22.71390771,245.98,245.89,20.0]
[1732199042832,22.71390771,245.98,245.9,9.9633]
[1732199043019,22.71390771,245.96,245.9,9.9633]
[1732199044221,22.71390771,245.96,245.9,7.1167]
[1732199045864,22.71390771,245.96,245.88,22.71390771]
[1732199046035,22.71390771,245.94,245.84,36.95080771]
[1732199046330,22.71390771,245.94,245.85,20.0]
[1732199046830,14.26612946,245.95,245.85,34.26612946]
[1732199047327,14.26612946,245.95,245.87,20.0]
[1732199047936,14.26612946,245.97,245.87,34.26612946]
[1732199049010,14.26612946,246.01,245.91,14.26612946]
[1732199049212,14.26612946,246.01,245.93,20.63382946]
[1732199050129,14.26612946,246.01,245.94,2.8462]
[1732199050630,14.26612946,246.01,245.94,9.9617]
[1732199051219,14.26612946,246.03,245.95,14.26612946]
[1732199051416,14.26612946,246.01,245.94,9.9617]
[1732199051816,14.26612946,246.03,245.95,14.26612946]
[1732199052018,14.26612946,246.05,245.96,20.0]
[1732199052227,14.26612946,246.05,245.97,9.9604]
[1732199052525,14.26612946,246.03,245.97,9.9604]
[1732199052737,14.26612946,245.99,245.95,2.846]
[1732199053031,14.26612946,245.97,245.93,16.3296]
[1732199053530,14.26612946,245.95,245.93,7.1157]
[1732199054041,14.26612946,245.95,245.93,6.6157]
[1732199054221,14.26612946,245.95,245.87,6.0181]
[1732199054424,14.26612946,245.95,245.88,11.3876]
[1732199055621,14.26612946,245.97,245.88,11.3876]
[1732199056333,14.26612946,245.95,245.88,11.3876]
[1732199062522,14.26612946,245.97,245.88,11.3876]
[1732199062726,14.26612946,245.95,245.88,11.3876]
[1732199063023,14.26612946,246.03,245.94,14.26612946]
[1732199063223,14.26612946,246.05,245.96,14.26612946]
[1732199063827,14.26612946,246.07,245.97,11.3834]
[1732199064136,14.26612946,246.07,245.99,20.0]
[1732199065122,14.26612946,246.07,246.0,11.382]
[1732199066334,14.26612946,246.05,246.0,11.382]
[1732199066929,14.26612946,246.01,245.98,3.2522]
[1732199067233,14.26612946,245.99,245.96,11.3837]
[1732199068426,14.26612946,245.99,245.9,29.66432946]
[1732199068624,14.26612946,245.99,245.91,31.3862]
[1732199068821,14.26612946,245.97,245.91,31.3862]
[1732199069131,14.26612946,245.95,245.91,11.3862]
[1732199070435,14.26612946,245.93,245.89,3.2534]
[1732199070624,14.26612946,245.91,245.89,3.2534]
[1732199070838,14.26612946,245.91,245.87,17.406]
[1732199071230,14.26612946,245.9,245.87,17.406]
[1732199071827,14.26612946,245.9,245.87,8.1343]
[1732199073949,14.26612946,245.99,245.9,20.0]
[1732199074247,15.0897,246.09,245.97,14.26612946]
[1732199074446,14.26612946,246.06,245.98,20.0]
[1732199075029,14.26612946,246.04,245.95,20.30852946]
[1732199075243,14.26612946,246.04,245.96,20.0]
[1732199075445,14.26612946,246.06,245.97,14.26612946]
[1732199075746,14.26612946,246.08,245.99,14.26612946]
[1732199076843,14.26612946,246.08,246.0,20.0]
[1732199077041,22.80164401,246.08,246.0,20.0]
[1732199077357,22.80164401,246.14,246.05,22.80164401]
[1732199077533,22.80164401,246.18,246.1,3.2507]
[1732199077929,4.0616,246.21,246.1,3.2507]
[1732199077930,22.80164401,246.16,246.1,11.3774]
[1732199078342,22.80164401,246.18,246.1,11.3774]
[1732199079635,22.80164401,246.2,246.11,22.80164401]
[1732199080244,4.0614,246.22,246.08,6.0214]
[1732199080245,22.80164401,246.22,246.13,22.80164401]
[1732199080436,22.80164401,246.2,246.12,11.3765]
[1732199080928,22.80164401,246.18,246.12,11.3765]
[1732199081956,22.80164401,246.16,246.12,8.1261]
[1732199082338,22.80164401,246.16,246.1,3.2506]
[1732199082636,22.80164401,246.14,246.08,9.2723]
[1732199082842,22.80164401,246.12,246.08,6.0214]
[1732199083144,22.80164401,246.12,246.07,8.1275]
[1732199083453,22.80164401,246.12,246.07,11.3786]
[1732199083628,22.80164401,246.12,246.07,8.1275]
[1732199083832,22.80164401,246.1,246.07,8.1275]
[1732199084934,22.80164401,246.1,246.04,3.2514]
[1732199086659,26.86504401,246.1,246.03,8.129]
[1732199086957,22.80164401,246.1,246.03,8.129]
[1732199087170,22.80164401,246.1,246.03,11.3806]
[1732199087353,22.80164401,246.16,246.07,22.80164401]
[1732199088648,22.80164401,246.16,246.08,11.3783]
[1732199088859,22.80164401,246.14,246.08,11.3783]
[1732199090459,22.80164401,246.14,246.08,8.1274]
[1732199090853,22.80164401,246.12,246.04,3.2514]
[1732199091643,22.80164401,246.1,246.04,3.2514]
[1732199091861,22.80164401,246.1,246.04,11.3801]
[1732199092370,22.80164401,246.12,246.04,11.3801]
[1732199092753,22.80164401,246.14,246.04,11.3801]
[1732199092942,22.80164401,246.14,246.05,22.80164401]
[1732199093465,22.80164401,246.17,246.07,22.80164401]
[1732199093844,22.80164401,246.15,246.05,42.80164401]
[1732199094163,22.80164401,246.15,246.07,20.0]
[1732199094661,22.80164401,246.13,246.06,11.3792]
[1732199095070,22.80164401,246.15,246.06,11.3792]
[1732199095561,22.80164401,246.15,246.07,20.0]
[1732199096164,10.1532,246.23,246.07,20.0]
[1732199096165,22.80164401,246.17,246.09,20.0]
[1732199097140,22.80164401,246.17,246.1,11.3774]
[1732199097341,22.80164401,246.19,246.1,11.3774]
[1732199097546,22.80164401,246.21,246.11,22.80164401]
[1732199097973,22.80164401,246.23,246.13,22.80164401]
[1732199098269,4.061,246.25,246.13,22.80164401]
[1732199098270,22.80164401,246.21,246.14,20.0]
[1732199098657,14.23570861,246.21,246.12,14.23570861]
[1732199099162,14.23570861,246.23,246.13,31.376]
[1732199099467,14.23570861,246.27,246.18,14.23570861]
[1732199099764,14.23570861,246.29,246.2,14.23570861]
[1732199100155,14.23570861,246.31,246.22,14.23570861]
[1732199101255,14.23570861,246.31,246.23,11.3713]
[1732199101457,18.29500861,246.35,246.26,14.23570861]
[1732199101780,14.23570861,246.37,246.28,14.23570861]
[1732199101955,14.23570861,246.37,246.3,14.23570861]
[1732199102150,14.23570861,246.39,246.3,14.23570861]
[1732199102776,14.23570861,246.41,246.32,14.23570861]
[1732199103447,14.23570861,246.41,246.33,3.2476]
[1732199103874,14.23570861,246.39,246.3,14.23570861]
[1732199104170,14.23570861,246.36,246.33,8.1191]
[1732199104570,14.23570861,246.38,246.33,8.1191]
[1732199104875,14.23570861,246.4,246.33,8.1191]
[1732199106359,14.23570861,246.38,246.33,8.1191]
[1732199106872,14.23570861,246.34,246.28,9.9478]
[1732199108568,14.23570861,246.36,246.28,9.9478]
[1732199109879,14.23570861,246.38,246.29,34.23570861]
[1732199111447,14.23570861,246.38,246.3,9.9471]
[1732199112054,14.23570861,246.38,246.31,20.0]
[1732199112580,40.76060861,246.48,246.33,20.0]
[1732199112581,14.23570861,246.4,246.33,20.0]
[1732199113076,14.23570861,246.42,246.33,34.23570861]
[1732199113451,10.1411,246.53,246.35,14.23570861]
[1732199113452,14.23570861,246.44,246.35,14.23570861]
[1732199113658,14.23570861,246.46,246.36,20.0]
[1732199113958,14.23570861,246.44,246.36,20.0]
[1732199114471,14.23570861,246.42,246.37,8.1178]
[1732199116466,14.23570861,246.38,246.37,8.1178]
[1732199117075,14.23570861,246.4,246.37,8.1178]
[1732199117658,14.23570861,246.38,246.37,8.1178]
[1732199119066,14.23570861,246.38,246.32,8.1192]
[1732199119252,14.23570861,246.36,246.32,8.1192]
[1732199119456,14.23570861,246.34,246.32,8.1192]
[1732199120151,14.23570861,246.36,246.32,8.1192]
[1732199121072,14.23570861,246.38,246.3,20.0]
[1732199122003,14.23570861,246.36,246.31,11.3677]
[1732199122278,14.23570861,246.36,246.32,20.0]
[1732199122479,14.23570861,246.36,246.31,11.3677]
[1732199122692,14.23570861,246.34,246.31,11.3677]
[1732199122978,14.23570861,246.32,246.27,23.2484]
[1732199124178,14.23570861,246.34,246.27,31.3695]
[1732199124381,14.23570861,246.36,246.29,20.0]
[1732199124770,14.23570861,246.34,246.29,20.0]
[1732199125173,14.23570861,246.34,246.28,20.0]
[1732199125777,14.23570861,246.34,246.29,11.3687]
[1732199126182,14.23570861,246.34,246.3,20.0]
[1732199127076,14.23570861,246.34,246.31,3.2479]
[1732199128181,14.23570861,246.32,246.29,8.1205]
[1732199128367,14.23570861,246.3,246.29,11.3687]
[1732199128995,14.23570861,246.32,246.29,11.3687]
[1732199129368,14.23570861,246.32,246.29,8.1205]
[1732199129675,14.23570861,246.36,246.29,8.1205]
[1732199130488,14.23570861,246.38,246.3,20.0]
[1732199131071,14.23570861,246.32,246.3,20.0]
[1732199131574,14.23570861,246.34,246.3,11.3681]
[1732199132778,14.23570861,246.32,246.3,8.1201]
[1732199134487,14.23570861,246.34,246.26,20.0]
[1732199134879,14.23570861,246.36,246.28,14.23570861]
[1732199135083,4.0579,246.43,246.3,6.2361]
[1732199135084,14.23570861,246.38,246.3,6.2361]
[1732199135283,4.0579,246.43,246.31,20.0]
[1732199135284,14.23570861,246.36,246.31,20.0]
[1732199135773,14.23570861,246.36,246.32,11.3673]
[1732199136172,14.23570861,246.38,246.33,20.0]
[1732199137191,14.23570861,246.38,246.34,3.2475]
[1732199137373,14.23570861,246.38,246.33,20.0]
[1732199137374,14.23570861,246.36,246.33,3.2476]
[1732199137971,14.23570861,246.34,246.32,8.1195]
[1732199138972,14.23570861,246.34,246.32,11.3673]
[1732199139178,14.23570861,246.42,246.33,43.776884]
[1732199139385,14.23570861,246.42,246.33,20.0]
[1732199139588,14.23570861,246.4,246.33,20.0]
[1732199140181,14.23570861,246.42,246.35,20.0]
[1732199140988,14.23570861,246.44,246.35,20.0]
[1732199141193,14.23570861,246.42,246.35,20.0]
[1732199141786,14.23570861,246.44,246.35,20.0]
[1732199141982,14.23570861,246.44,246.36,14.23570861]
[1732199142188,14.23570861,246.46,246.39,20.0]
[1732199143097,14.23570861,246.48,246.39,20.0]
[1732199143698,14.23570861,246.42,246.39,20.0]
[1732199143886,14.23570861,246.42,246.38,11.3645]
[1732199145977,14.23570861,246.4,246.34,8.1188]
[1732199146196,14.23570861,246.38,246.34,8.1188]
[1732199147795,14.23570861,246.36,246.34,8.1188]
[1732199148505,4.0584,246.4,246.34,8.1188]
[1732199148506,14.23570861,246.38,246.34,8.1188]
[1732199148684,14.23570861,246.42,246.34,8.1188]
[1732199149003,14.23570861,246.42,246.35,20.0]
[1732199149683,14.23570861,246.4,246.35,20.0]
[1732199149878,14.23570861,246.4,246.34,8.1188]
[1732199150083,14.23570861,246.38,246.34,11.3662]
[1732199150500,14.23570861,246.38,246.34,8.1188]
[1732199150685,14.23570861,246.38,246.32,3.2477]
[1732199151082,14.23570861,246.34,246.24,8.1218]
[1732199151307,14.23570861,246.28,246.24,8.1218]
[1732199152784,14.23570861,246.26,246.2,3.2493]
[1732199153403,14.23570861,246.26,246.2,11.3727]
[1732199154211,14.23570861,246.26,246.21,20.0]
[1732199154503,14.23570861,246.28,246.21,20.0]
[1732199154904,14.23570861,246.22,246.19,0.60910469]
[1732199155207,0.5,246.35,246.15,8.1249]
[1732199155208,14.23570861,246.2,246.15,8.1249]
[1732199156003,14.23570861,246.18,246.11,6.2817]
[1732199156190,14.23570861,246.18,245.99,1.0]
[1732199156191,14.23570861,246.13,246.09,8.1269]
[1732199156500,14.23570861,246.11,246.09,8.1269]
[1732199156886,14.23570861,246.11,246.09,11.3777]
[1732199157907,14.23570861,246.11,246.09,8.1269]
[1732199159907,14.23570861,246.13,246.09,8.1269]
[1732199160123,14.23570861,246.15,246.09,8.1269]
[1732199160607,1.0,246.29,246.09,8.1269]
[1732199160608,14.23570861,246.21,246.13,14.23570861]
[1732199160799,14.23570861,246.23,246.13,14.23570861]
[1732199161393,14.23570861,246.23,246.15,14.23570861]
[1732199162007,14.23570861,246.25,246.17,14.23570861]
[1732199162209,14.23570861,246.27,246.18,6.0854]
[1732199162408,14.23570861,246.25,246.18,6.0854]
[1732199162710,22.76976737,246.2,246.14,3.2501]
[1732199163008,22.76976737,246.15,246.11,11.3767]
[1732199163906,22.76976737,246.24,246.11,8.1262]
[1732199163907,22.76976737,246.13,246.11,8.1262]
[1732199164595,22.76976737,246.15,246.11,8.1262]
[1732199165405,22.76976737,246.15,246.09,6.4726]
[1732199165406,22.76976737,246.13,246.09,6.4726]
[1732199165696,22.76976737,246.11,246.08,3.2509]
[1732199166100,22.76976737,246.11,246.08,11.3783]
[1732199167116,22.76976737,246.15,246.08,8.1274]
[1732199168218,22.76976737,246.13,246.08,8.1274]
[1732199168415,22.76976737,246.11,246.08,8.1274]
[1732199171698,22.76976737,246.09,246.05,3.2513]
[1732199172295,22.76976737,246.12,246.05,3.2513]
[1732199172514,22.76976737,246.14,246.05,3.2513]
[1732199172929,22.76976737,246.16,246.06,22.76976737]
[1732199173294,22.76976737,246.13,246.05,3.2513]
[1732199173699,22.76976737,246.13,246.05,26.02106737]
[1732199174922,22.76976737,246.15,246.05,34.14946737]
[1732199175105,22.76976737,246.15,246.05,50.40626737]
[1732199175308,22.76976737,246.17,246.07,22.76976737]
[1732199176426,22.76976737,246.15,246.07,22.76976737]
[1732199176628,22.76976737,246.15,246.08,11.3783]
[1732199177213,22.76976737,246.17,246.09,42.76976737]
[1732199177528,4.061,246.25,246.11,22.76976737]
[1732199177529,22.76976737,246.21,246.11,22.76976737]
[1732199177708,16.6389,246.31,246.19,22.76976737]
[1732199177914,22.76976737,246.29,246.19,22.76976737]
[1732199178328,22.76976737,246.27,246.17,22.76976737]
[1732199178629,22.76976737,246.19,246.15,8.1249]
[1732199179819,22.76976737,246.17,246.15,8.1249]
[1732199180028,22.76976737,246.17,246.11,11.3769]
[1732199181712,22.76976737,246.23,246.13,22.76976737]
[1732199182016,22.26976737,246.23,246.13,22.76976737]
[1732199182228,22.76976737,246.21,246.11,50.39946737]
[1732199182935,22.76976737,246.17,246.11,27.6297]
[1732199183611,22.76976737,246.15,246.11,11.3769]
[1732199184705,14.2438666,246.14,246.04,20.7111666]
[1732199184906,14.2438666,246.14,246.05,27.6365]
[1732199185538,14.2438666,246.16,246.08,14.2438666]
[1732199185827,14.2438666,246.19,246.08,14.2438666]
[1732199186027,14.2438666,246.19,246.1,14.2438666]
[1732199186230,14.2438666,246.21,246.12,14.2438666]
[1732199186403,14.2438666,246.23,246.14,14.2438666]
[1732199186608,16.6389,246.31,246.16,14.2438666]
[1732199186819,14.2438666,246.26,246.17,11.3741]
[1732199187228,14.2438666,246.26,246.18,14.2438666]
[1732199188232,14.2438666,246.28,246.18,14.2438666]
[1732199188523,14.2438666,246.28,246.19,11.3733]
[1732199188733,14.2438666,246.28,246.2,14.2438666]
[1732199189326,14.2438666,246.3,246.22,14.2438666]
[1732199189508,14.2438666,246.3,246.19,11.3733]
[1732199189509,14.2438666,246.3,246.2,14.2438666]
[1732199190033,14.2438666,246.34,246.24,14.2438666]
[1732199190532,30.6311666,246.36,246.26,14.2438666]
[1732199190737,14.2438666,246.34,246.26,14.2438666]
[1732199191056,14.2438666,246.34,246.25,11.3705]
[1732199191735,14.2438666,246.26,246.17,8.73339375]
[1732199192027,14.2438666,246.22,246.17,8.1244]
[1732199193434,14.2438666,246.2,246.17,8.1244]
[1732199193725,14.2438666,246.22,246.17,8.1244]
[1732199194312,14.2438666,246.24,246.17,8.1244]
[1732199194512,14.2438666,246.26,246.18,14.2438666]
[1732199194928,4.0594,246.34,246.13,11.376]
[1732199194929,14.2438666,246.24,246.14,14.2438666]
[1732199195132,14.2438666,246.22,246.13,11.376]
[1732199195329,14.2438666,246.2,246.13,11.376]
[1732199196530,14.2438666,246.22,246.13,11.376]
[1732199196913,14.2438666,246.2,246.13,11.376]
[1732199197316,14.2438666,246.16,246.13,8.1257]
[1732199198836,30.4325666,246.24,246.13,8.1257]
[1732199198837,14.2438666,246.2,246.13,8.1257]
[1732199199636,14.2438666,246.22,246.13,22.3695666]
[1732199200733,14.2438666,246.22,246.13,25.6198666]
[1732199200940,14.2438666,246.22,246.13,11.376]
[1732199201341,14.2438666,246.15,246.09,8.127]
[1732199201631,14.2438666,246.1,246.09,8.127]
[1732199202619,14.2438666,246.1,246.05,16.2568]
[1732199202817,14.2438666,246.08,246.05,16.2568]
[1732199206832,14.2438666,246.08,246.04,11.3802]
[1732199208749,20.5,246.24,246.04,11.3802]
[1732199209044,14.2438666,246.09,246.04,11.3802]
[1732199210737,14.2438666,246.11,246.04,11.3802]
[1732199211041,14.2438666,246.09,246.04,11.3802]
[1732199211745,23.776884,246.16,246.04,11.3802]
[1732199211746,14.2438666,246.11,246.04,11.3802]
[1732199213144,14.2438666,246.05,245.98,16.2612]
[1732199213338,14.2438666,246.05,246.0,3.2519]
[1732199213540,14.2438666,246.07,246.0,3.2519]
[1732199214340,14.2438666,246.01,245.95,8.1317]
[1732199214545,14.2438666,245.97,245.95,8.1317]
[1732199214723,14.2438666,245.97,245.93,3.2529]
[1732199214930,14.2438666,245.94,245.9,8.133]
[1732199215147,14.2438666,245.92,245.9,8.133]
[1732199216929,14.2438666,245.94,245.9,8.133]
[1732199217332,14.2438666,245.98,245.9,8.133]
[1732199218859,14.2438666,245.98,245.9,22.3768666]
[1732199219035,14.2438666,245.98,245.9,41.8968666]
[1732199219947,14.2438666,246.04,245.94,14.2438666]
[1732199220154,14.2438666,246.04,245.96,14.2438666]
[1732199220563,6.6462,246.11,245.91,23.776884]
[1732199220564,14.2438666,246.0,245.91,14.2438666]
[1732199220936,14.2438666,245.98,245.9,27.653]
[1732199222741,4.0644,246.04,245.9,11.3863]
[1732199222742,14.2438666,245.96,245.9,11.3863]
[1732199222944,14.2438666,245.94,245.9,11.3863]
[1732199223350,14.2438666,245.98,245.9,11.3863]
[1732199223542,14.2438666,246.0,245.9,27.653]
[1732199223753,14.2438666,246.0,245.91,14.2438666]
[1732199224054,4.0638,246.08,245.9,27.653]
[1732199224055,14.2438666,246.04,245.95,14.2438666]
[1732199224856,14.2438666,246.02,245.96,11.3839]
[1732199225239,14.2438666,246.0,245.96,11.3839]
[1732199226657,22.81421695,246.01,245.92,11.3857]
[1732199227538,22.81421695,245.93,245.82,27.6618]
[1732199227739,22.81421695,245.9,245.82,27.6618]
[1732199228138,22.81421695,245.88,245.82,27.6618]
[1732199228562,22.81421695,245.9,245.82,27.6618]
[1732199228858,22.81421695,245.9,245.82,24.4074]
[1732199229037,22.81421695,245.86,245.82,24.4074]
[1732199229736,22.81421695,245.86,245.82,8.136]
[1732199230464,4.066,245.94,245.82,8.136]
[1732199230465,22.81421695,245.88,245.82,8.136]
[1732199231461,22.81421695,245.84,245.76,8.138]
[1732199231635,39.54831695,245.88,245.76,8.138]
[1732199231636,22.81421695,245.78,245.76,8.138]
[1732199232436,22.81421695,245.78,245.73,3.2556]
[1732199232860,22.81421695,245.78,245.71,8.1396]
[1732199233065,22.81421695,245.78,245.71,7.6396]
[1732199234039,22.81421695,245.76,245.71,7.6396]
[1732199234253,4.068,245.82,245.66,8.1412]
[1732199234254,22.81421695,245.72,245.66,8.1412]
[1732199234447,22.81421695,245.68,245.66,8.1412]
[1732199234862,22.81421695,245.68,245.61,11.4]
[1732199235043,22.81421695,245.64,245.61,11.4]
[1732199235976,22.81421695,245.68,245.61,11.4]
[1732199236135,22.81421695,245.64,245.54,29.29191695]
[1732199236337,22.81421695,245.62,245.56,8.1446]
[1732199237979,22.81421695,245.64,245.56,8.1446]
[1732199238153,22.81421695,245.68,245.58,22.81421695]
[1732199238565,22.81421695,245.72,245.62,22.81421695]
[1732199238861,22.81421695,245.74,245.64,22.81421695]
[1732199239066,22.81421695,245.76,245.66,22.81421695]
[1732199239255,22.81421695,245.78,245.68,22.81421695]
[1732199239458,22.81421695,245.78,245.68,28.83401695]
[1732199239760,22.81421695,245.8,245.7,22.81421695]
[1732199239952,22.81421695,245.76,245.71,3.2558]